Cogmind - Beta 16.1 @@@ ROGUE MODE // 2026.04.04 @ 13:51:12 Player: KURIIRI Result: Destroyed by Z8-8PZ(R) with Subdweller Beam Cannon Performance ------------- Evolutions (0) 0 Regions Visited (2) 400 Robots Destroyed (37) 185 Value Destroyed (800) 800 Prototype IDs (2) 40 Alien Tech Used (0) 0 Bonus (0) 0 TOTAL SCORE: 1425 Bonus ------- None Cogmind --------- Core Integrity 0/250 Matter 221/300 Energy 250/250 System Corruption 1% Temperature Cool (48) Movement Rolling (125) Ox3 Location -10/Subcaves Parts ------- > --- POWER (1) -------- Ion Engine > --- PROPULSION (2) --- Light Treads Wheel > --- UTILITY (2) ------ Large Storage Unit Subdweller Optics > --- WEAPON (2) ------- Subdweller Beam Cannon Subdweller Machine Gun > --- INVENTORY (15) --- Light Ion Engine Light Ion Engine Wheel Huge Storage Unit Hacking Suite Spread Laser Spread Laser Assault Rifle Shotgun Shotgun Rocket Launcher Rocket Launcher Rocket Launcher Multitool Mace Peak State ------------ > --- POWER ------------ Ion Engine > --- PROPULSION ------- Light Treads Wheel > --- UTILITY ---------- Large Storage Unit Subdweller Optics > --- WEAPON ----------- Subdweller Beam Cannon Subdweller Machine Gun > --- INVENTORY -------- Light Ion Engine Light Ion Engine Wheel Huge Storage Unit Hacking Suite Spread Laser Spread Laser Assault Rifle Shotgun Shotgun Rocket Launcher Rocket Launcher Rocket Launcher Multitool Mace [Rating: 12] Favorites ----------- Power Ion Engine Engine Ion Engine Propulsion Light Treads Treads Light Treads Leg Aluminum Leg Wheel Wheel Utility Large Storage Unit Device Seismic Detector Storage Large Storage Unit Weapon Shotgun Energy Gun Spread Laser Energy Cannon Subdweller Beam Cannon Ballistic Gun Shotgun Launcher Rocket Launcher Impact Weapon Mace Build | -11 -10 -10 ------- Run | Yrd Mat Sub Slots Evolved . | . . . Power . | . . . Propulsion . | . . . Utility . | . . . Weapon . | . . . Parts Attached 15 | 1 11 3 Power 1 | . 1 . Engine 1 | . 1 . Core . | . . . Reactor . | . . . Propulsion 3 | . 3 . Treads 2 | . 2 . Leg . | . . . Wheel 1 | . 1 . Hover . | . . . Flight . | . . . Utility 3 | 1 1 1 Device 2 | 1 . 1 Storage 1 | . 1 . Processor . | . . . Hackware . | . . . Protection . | . . . Artifact . | . . . Weapon 8 | . 6 2 Energy Gun 1 | . 1 . Energy Cannon 1 | . . 1 Ballistic Gun 4 | . 3 1 Ballistic Cannon . | . . . Launcher 1 | . 1 . Special Weapon . | . . . Impact Weapon 1 | . 1 . Slashing Weapon . | . . . Piercing Weapon . | . . . Special Melee Weapon . | . . . Unidentified Prototypes . | . . . Parts Lost 2 | . 2 . Power 1 | . 1 . Propulsion . | . . . Utility 1 | . 1 . Weapon . | . . . Highest Loss Streak 1 | . 1 . To Critical Strikes . | . . . Average Backups 11 | 6 11 14 Power 2 | 1 2 2 Propulsion 1 | 4 1 1 Utility . | . . 2 Weapon 6 | 1 5 9 Tool/Special . | . . . Unused Backups 16 | . 4 12 Power 2 | . . 2 Propulsion 2 | . 1 1 Utility 3 | . 1 2 Weapon 8 | . 2 6 Tool/Special 1 | . . 1 Average Slot Usage (%) 94 | . 95 88 Engine 13 | . 13 14 Treads 18 | . 19 14 Leg 1 | . 2 . Wheel 7 | . 6 14 Device 9 | . 10 3 Storage 14 | . 14 14 Energy Gun 8 | . 10 2 Energy Cannon 2 | . . 11 Ballistic Gun 15 | . 17 8 Impact Weapon 1 | . . 5 Peak Build Rating 12 | 7 11 12 Average Rating 9 | 6 9 10 On Entrance 7 | 6 7 10 Avg Prop Armor Cover (%) 12 | . 11 13 Naked Turns . | . . . Heaviest Build 39 | 13 32 39 Greatest Support 40 | 20 40 10 Greatest Overweight (x) 3 | . 3 3 Average Overweight (x) 1 | . 1 3 Largest Inventory Capacity 15 | 8 15 15 Average Capacity 14 | 8 14 15 Most Carried 15 | 8 15 15 Average Carried 11 | 6 11 14 Final Capacity 15 | 8 15 15 Final Carried 15 | 8 14 15 Class Distribution -------------------- 100% | Mutant Dominant Class ---------------- Mutant | -10/Materials Mutant | -10/Subcaves Resources | -11 -10 -10 ----------- Run | Yrd Mat Sub Matter Collected 707 | 219 431 57 Remotely . | . . . Salvage Created 1161 | 113 991 57 Parts 79 | 8 66 5 Haulers Intercepted 1 | . 1 . Recyclers Shooed 2 | . 2 . Parts Field Recycled . | . . . Retrieved Matter . | . . . Parts Self-Destructed 1 | . . 1 Prevented . | . . . Parts Restored . | . . . Kills | -11 -10 -10 ------- Run | Yrd Mat Sub Combat Hostiles Destroyed 24 | . 22 2 Guns 22 | . 20 2 AOE 2 | . 2 . Classes Destroyed 10 | 2 7 1 Worker 2 | . 2 . Builder 2 | . 2 . Tunneler 1 | 1 . . Hauler 1 | . 1 . Recycler 3 | 1 2 . Operator 2 | . 2 . Watcher 2 | . 2 . Swarmer 6 | . 6 . Grunt 16 | . 16 . Subdweller 2 | . . 2 Best Kill Streak 6 | 2 6 2 Combat Bots Only 5 | . 5 2 Max Kills in Single Turn 2 | 1 2 1 Gunslinging . | . . . Exploded 1 | . 1 . Melee . | . . . Uniques/NPCs Destroyed . | . . . Combat | -11 -10 -10 -------- Run | Yrd Mat Sub Hostile Shots Fired 103 | . 82 21 Missed 30 | . 26 4 Hits 73 | . 56 17 Projectile 73 | . 56 17 Critical Strikes 1 | . . 1 Damage Taken 1003 | . 603 400 Core 273 | . 107 166 Absorbed by Shields . | . . . Regen/Repaired (Parts) 115 | . 115 . Core Remaining (%) 100 | 100 . . Volleys Fired 85 | 3 71 11 Largest 2 | 2 2 2 Hottest 110 | 60 88 110 Shots Fired 168 | 6 140 22 Gun 162 | 6 138 18 Cannon 4 | . . 4 Launcher 2 | . 2 . Special . | . . . Kinetic 98 | 3 84 11 Thermal 36 | . 25 11 Explosive 2 | . 2 . Electromagnetic 32 | 3 29 . Robot Hit Streak 18 | 2 18 10 Robot Miss Streak 5 | 1 5 4 Penetration Max . | . . . Secondary Targets 2 | . 2 . Max Gunslinging Chain 1 | . 1 . Shots Hit Robots 127 | 3 104 20 Core Hits 81 | 3 68 10 Critical Kills 2 | . 2 . Critical Parts Destroyed . | . . . Critical Strikes 4 | . 4 . Destroy 2 | . 2 . Corrupt 2 | . 2 . Melee Attacks 23 | . 3 20 Impact 23 | . 3 20 Slashing . | . . . Piercing . | . . . Sneak Attacks . | . . . Combat Hostiles . | . . . Follow-up Attacks . | . . . Damage Inflicted 2012 | 38 1680 294 Guns 1743 | 38 1465 240 Cannons 54 | . . 54 Explosions 199 | . 199 . Melee . | . . . Ramming 16 | . 16 . Kinetic 1107 | 38 912 157 Thermal 548 | . 411 137 Explosive 49 | . 49 . Electromagnetic 292 | . 292 . Impact . | . . . Slashing . | . . . Piercing . | . . . Highest Corruption 1 | . 1 1 Average Corruption 1 | . 1 1 Corruption Purged . | . . . Corruption Blocked . | . . . Effects 16 | . 11 5 Message Errors 3 | . 2 1 Matter Fused 3 | . 3 . Heat Flow Errors 4 | . 1 3 Energy Discharges 2 | . 2 . Parts Fused 1 | . 1 . Data Loss (minor) 1 | . 1 . Data Loss (major) 1 | . . 1 Alerts 1 | . 1 . Overload Shots . | . . . Overflow Damage . | . . . Projectiles . | . . . Explosions . | . . . Melee . | . . . Knockbacks . | . . . Impact . | . . . Kinetic . | . . . Secondary . | . . . Self-Inflicted Damage 6 | . 6 . Shots . | . . . Rammed 3 | . 3 . Targets Rammed 4 | . 4 . Kicked . | . . . Crushed 1 | . 1 . Highest Temperature 277 | . 277 206 Average Temperature 47 | . 46 56 Received Heat Transfer 345 | . 273 72 Siege Activations . | . . . Martial Activations . | . . . Shielding Activations . | . . . Robots Disrupted . | . . . Combat Hostiles . | . . . Robots Corrupted . | . . . Combat Hostiles . | . . . Parts Fried 1 | . 1 . Impact Corruptions . | . . . Robots Melted . | . . . Combat Hostiles . | . . . Parts Melted . | . . . Heat Transferred 629 | . 445 184 Parts Sabotaged . | . . . Parts Stolen . | . . . Parts Stripped . | . . . Power Chain Reactions 2 | . 2 . Alert | -11 -10 -10 ------- Run | Yrd Mat Sub Maximum Alert Level 1 | . 1 . Low Security (%) 67 | 100 66 . Level 1 32 | . 33 . Level 2 . | . . . Level 3 . | . . . Level 4 . | . . . Level 5 . | . . . High Security . | . . . Max Security . | . . . Peak Influence 293 | 10 293 . Initial . | . . . Average 136 | 3 139 . Influence Increases 807 | 10 797 . Destroy 0b10 Robot/C 440 | . 440 . Destroy 0b10 Robot/NC 65 | 10 55 . Destroy Leader 106 | . 106 . Successful Hack 30 | . 30 . Select Force Hacks 60 | . 60 . Destroy Structure 31 | . 31 . Lose Combat Pursuer 75 | . 75 . Influence Decreases 807 | 10 520 277 Entered New Map 133 | . . 133 Time Decay 654 | 10 500 144 Lost Part 20 | . 20 . Squads Dispatched 7 | . 7 . Investigation 6 | . 6 . Extermination . | . . . Reinforcement 1 | . 1 . Assault . | . . . Garrison . | . . . Intercept . | . . . Searches Triggered . | . . . Construction Impeded . | . . . Haulers Reinforced . | . . . Active Scanning Responses . | . . . Cargo Convoy Interrupts . | . . . Stealth | -11 -10 -10 --------- Run | Yrd Mat Sub Distress Signals 2 | . 2 . Communications Jammed . | . . . Distress Signals . | . . . Times Spotted 39 | . 35 4 Peak Tracking Total 4 | . 4 2 Tactical Retreats 4 | . 4 . Traps | -11 -10 -10 ------- Run | Yrd Mat Sub Traps Triggered 3 | . 3 . Indirectly . | . . . Trap Hack Attempts . | . . . Triggered . | . . . Disarmed . | . . . Reprogrammed . | . . . Reused . | . . . Traps Extracted . | . . . Installed . | . . . Triggered . | . . . Machines | -11 -10 -10 ---------- Run | Yrd Mat Sub Machines Disabled . | . . . Max in Single Turn . | . . . Machines Repaired . | . . . Machines Dismantled . | . . . Machines Sabotaged . | . . . Overloaded Fab Kills . | . . . Hacking | -11 -10 -10 --------- Run | Yrd Mat Sub Machines Accessed 11 | . 11 . Terminals 8 | . 8 . Fabricators . | . . . Repair Stations 1 | . 1 . Recycling Units 2 | . 2 . Scanalyzers . | . . . Garrison Access . | . . . Total Hacks 34 | . 34 . Successful 25 | . 25 . Failed 8 | . 8 . Catastrophic . | . . . Database Lockouts 1 | . 1 . Manual 29 | . 29 . Terminals 30 | . 30 . Fabricators . | . . . Repair Stations 2 | . 2 . Recycling Units 2 | . 2 . Scanalyzers . | . . . Garrison Access . | . . . Terminal Hacks 9 | . 9 . Robot Analysis 4 | . 4 . Prototype ID Bank 1 | . 1 . Terminal Index 1 | . 1 . Locate Traps 1 | . 1 . Zone Layout 2 | . 2 . Fabricator Hacks . | . . . Repair Station Hacks 2 | . 2 . Scan Component 1 | . 1 . Repair 1 | . 1 . Recycling Unit Hacks . | . . . Scanalyzer . | . . . Garrison Access Hacks . | . . . Unauthorized Hacks 14 | . 14 . Terminals 12 | . 12 . Assimilate 2 | . 2 . Botnet 3 | . 3 . Operators 1 | . 1 . Skim 6 | . 6 . Fabricators . | . . . Repair Stations . | . . . Recycling Units 2 | . 2 . Tunnel 2 | . 2 . Scanalyzers . | . . . Garrison Access . | . . . Data Cores Recovered . | . . . Used . | . . . Hacking Detections 7 | . 7 . Full Trace Events 1 | . 1 . Feedback Events . | . . . Feedback Blocked . | . . . Robot Schematics Acquired . | . . . Robots Built . | . . . Authchips . | . . . Time . | . . . Total Robot Build Rating . | . . . Part Schematics Acquired . | . . . Parts Built . | . . . Authchips . | . . . Time . | . . . Total Part Build Rating . | . . . Part Studies Acquired . | . . . Parts Repaired 1 | . 1 . Time 26 | . 26 . Parts Recycled . | . . . Recycled Matter . | . . . Retrieved Matter . | . . . Retrieved Components . | . . . Parts Scanalyzed . | . . . Part Schematics Acquired . | . . . Parts Damaged . | . . . Bothacking | -11 -10 -10 ------------ Run | Yrd Mat Sub Used RIF Installer . | . . . Robots Hacked . | . . . Non-combat . | . . . Combat . | . . . Robot Hacks Applied . | . . . Relay Couplers Released . | . . . Fabnet Peak Effective % . | . . . Robots Rewired . | . . . Allies Hacked . | . . . Hacks Repelled . | . . . Allies | -11 -10 -10 -------- Run | Yrd Mat Sub Total Allies . | . . . Largest Group . | . . . Highest-Rated Group . | . . . Highest-Rated Ally . | . . . Total Orders . | . . . Ally Attacks . | . . . Total Damage . | . . . Kills . | . . . Allies Corrupted . | . . . Allies Melted . | . . . Intel | -11 -10 -10 ------- Run | Yrd Mat Sub Active Infowar (turns) 1117 | 25 1026 66 Optics 66 | . . 66 Seismic 1051 | 25 1026 . Robot Analysis Total 2 | . 2 . Derelict Logs Recovered . | . . . Drone Launches . | . . . Drone Recoveries . | . . . Exploration | -11 -10 -10 ------------- Run | Yrd Mat Sub Turns Passed 1731 | 39 1391 301 Spaces Moved 844 | 23 684 137 Core . | . . . Treads 281 | . 281 . Legs 69 | 23 46 . Wheels 494 | . 357 137 Hover . | . . . Flight . | . . . Fastest Speed 120 | 120 120 125 Average Speed 138 | 120 142 125 Slowest Speed 190 | 120 190 125 Overloaded Moves . | . . . Propulsion Burnouts . | . . . Robots Hopped . | . . . Potential Cave-ins . | . . . Cave-ins Triggered . | . . . Exploration Rate (%) 34 | 3 95 5 Regions Visited 2 Branch Regions 1 Pre-discovered Areas 2 | . 2 . Known Exits Taken 1 | . 1 . Unknown Exits Taken 1 | 1 . . Scrap Searched . | . . . Spaces Dug 2 | . 1 1 Terrain Destroyed 36 | . 34 2 Melee 2 | . 1 1 Projectile 1 | . . 1 AOE 33 | . 33 . Terrain Rammed . | . . . Walls Destroyed . | . . . Machines Disabled . | . . . Actions | -11 -10 -10 --------- Run | Yrd Mat Sub Total 1189 | 28 953 208 Wait 192 | . 160 32 Move 842 | 22 683 137 Hop . | . . . Pick Up 15 | 2 12 1 Fast Attach 5 | 1 1 3 Attach 3 | . 3 . Detach . | . . . Swap 12 | . 10 2 Drop 8 | . 6 2 Fire 85 | 3 71 11 Melee 23 | . 3 20 Ram 1 | . 1 . Kick . | . . . Crush 3 | . 3 . Escape Stasis . | . . . Rewire . | . . . Trap . | . . . Miscellaneous . | . . . Route ------- -11/Scrapyard -10/Materials (discovered 5 exits: *Mat x3 / *Min / *Sub) -10/Subcaves History --------- Turn | Location | Event 11 | -11/Scrapyard | Discovered new exit (range 3) 40 | -11/Scrapyard | Entered Materials 301 | -10/Materials | Build established: Mutant 508 | -10/Materials | Discovered new exit (range 15) 717 | -10/Materials | Discovered new exit (range 16) 767 | -10/Materials | Learned Storage stockpile data 828 | -10/Materials | Identified exit to Mines 828 | -10/Materials | Identified exit to Materials 879 | -10/Materials | Identified exit to Subcaves 879 | -10/Materials | Learned location of 1 exit from Materials 922 | -10/Materials | Learned location of 2 exits from Materials 938 | -10/Materials | Central database locked down 1087 | -10/Materials | Learned 4 Recycling zone layouts 1098 | -10/Materials | Learned location of 1 exit from Storage 1117 | -10/Materials | Loaded intel: 8 terminal locations 1190 | -10/Materials | Repaired Lgt. Treads 1431 | -10/Materials | Entered Subcaves 1432 | -10/Subcaves | Approached by a straggling Scientist 1439 | -10/Subcaves | Core integrity fell below 50% 1441 | -10/Subcaves | Shifting Twisted Machinery released Sub. Beam Cannon 1502 | -10/Subcaves | A swath of the cavern ceiling suddenly collapsed 1728 | -10/Subcaves | Core integrity fell below 20% 1732 | -10/Subcaves | Destroyed by Z8-8PZ(R) with Subdweller Beam Cannon Last Messages --------------- 01478_ Dropped Shotgun. 01479_ Acquired Sub. Machine Gun. ZF-NFF(c): "I think it's somewhere northwest of here" 01482_ E2,S8DV9KTRAC BFWW0C6WHFB7Y>VQDTPRQ 01482_ Subatomizers dissect the Sub. Monowheel. A swath of the cavern ceiling suddenly collapses. 01529_ System corrupted: Substantial component data lost. 01559_ System corrupted: Heat flow error (+114). 01568_ EJ-CJI(z): "She is not going to be happy we haven't found any suitable candidates yet." 01579_ System corrupted: Heat flow error (+246). 01646_ Subatomizers dissect the Sub. Power Source. 01647_ System corrupted: Heat flow error (+176). 01666_ Acquired Sub. Optics. 01668_ Subatomizers dissect the Sub. Power Source. Map ----- +----------------------------------------------------+ | ?????????????????????????????????????????????????? | | ?????????????????????????????????????????????????? | | ?????????????????????????????????????????????????? | | ?????????????????????????????????????????????????? | | ?????????????????????????????????????????????????? | | ?????????????????????????????????????????????????? | | ?????????????????????????????????????????????????? | | ?????????????????????????????????????????????????? | | ?????????????????????????????????????????????????? | | ?????????????????????????????????????????????????? | | ?????????????????????????????????????????????????? | | ??????????????????????? ????????????????????????? | | ?????????????????????? #???????????????????????? | | ???????????????????????" #?#????????????????????? | | ??????????????????????? # # ?###????????????????? | | ??????????????????????? """## ?????????????????? | | ???????????????????????? """ ?????????????????? | | ????????????????????????"""" ??????????????????? | | ????????????????????????#" ???????????????????? | | ?????????????????????"#?# ???????????????????? | | ?????????????????????""## ????????????????????? | | ??????????????????????"" #????????????????????? | | ???????????????????????"" #????????????????????? | | ???????????????????????##" #????????????????????? | | ???????????????????????#;RR ##???????????????????? | | ???????????????????????#;@ ##??????????????????? | | ???????????????????????### ###????????????????? | | ?????????????????????????# #????????????????? | | ?????????????????????????#" #????????????????? | | ?????????????????????????#" #????????????????? | | ?????????????????????????#"" #????????????????? | | ?????????????????????????# " ##???????????????? | | ?????????????????????????##### ###?????????????? | | ???????????????????????????### #?????????????? | | ???????????????????????????# #?????????????? | | ???????????????????????????## #?????????????? | | ????????????????????????????## ; ##?????????????? | | ?????????????????????????????##" ##??????????????? | | ??????????????????????????????## ##??????????????? | | ???????????????????????????????#"###?????????????? | | ????????????????????????????##?# "#?????????????? | | ????????????????????????????# ## ###?????????????? | | ???????????????????????????## ""# #??????????????? | | ???????????????????????????## # ###??????????????? | | ???????????????????????????##"" ##???????????????? | | ???????????????????????????## " #????????????????? | | ????????????????????????????#"" #????????????????? | | ????????????????????????????##""##???????????????? | | ????????????????????????????#""#"##??????????????? | | ???????????????????????????## ""# ###????????????? | +----------------------------------------------------+ Best States ------------- Heat Dissipation 25 Energy Generation 10 Energy Capacity 250 Matter Stores 300 Matter Capacity 300 Sight Range 21 Terrain Scan Density 10 Evasion (%) 50 Recoil Reduction 2 Item Schematics ----------------- None Robot Schematics ------------------ None Fabricated ------------ Nothing Repaired ---------- Lgt. Treads | 17% | -10/Materials Studied --------- None Alien Tech Used ----------------- None Achievements -------------- None Challenges ------------ None Game ------ Seed FissionBiomechanicalDatajack Manual? 0 Play Time 00:14:19 Cumulative 384.0 hours Start 2026.04.04 @ 13:39:04 End 2026.04.04 @ 13:51:12 Sessions 1 Manual Loads 0 Difficulty Rogue Special Mode None Game No. 318 Rogue 282 Adventurer 36 Explorer 0 Win Type - Total 5 Types 2/0/0/1/0/0/0/2/0/0 Lore% 73 Gallery% 66 Achievement% 54 Wizard Run 0 Options --------- Layout 1 ASCII 0 Keyboard 0 Movement Numpad Keybinds 0 Fullscreen 1 Font 48/Smallcaps Map View 50x35 Zoom Use 0% Tactical HUD 1 Map Filters NONE Filters NONE Steam 1 RUN: b324d3e3-a745-4358-93f1-815cf52eb1bc